bitfinex-derivatives/quotes_BTCF0:USTF0_20241125
["timestamp","ask_amount","ask_price","bid_price","bid_amount"]
[1732571033226,0.053107,94136.0,94127.0,0.10792087]
[1732571033638,0.3608,94130.0,94127.0,0.10792087]
[1732571033933,0.3608,94130.0,94128.0,0.00011456]
[1732571035732,0.053103,94142.0,94128.0,0.05322556]
[1732571036032,0.3608,94139.0,94128.0,0.05322556]
[1732571036222,0.3608,94139.0,94131.0,0.053109]
[1732571036631,0.3608,94139.0,94130.0,0.10792087]
[1732571036941,0.3608,94139.0,94131.0,0.18236]
[1732571037636,0.413905,94139.0,94131.0,0.18236]
[1732571038135,0.3608,94139.0,94131.0,0.18236]
[1732571039027,0.3608,94148.0,94140.0,0.053104]
[1732571039431,0.3608,94155.0,94141.0,0.3608]
[1732571039731,0.3608,94155.0,94154.0,0.053097]
[1732571039930,0.3608,94155.0,94154.0,0.235457]
[1732571040127,0.3608,94172.0,94162.0,0.053092]
[1732571040332,0.3608,94172.0,94166.0,0.05309]
[1732571040529,0.3608,94172.0,94162.0,0.18236]
[1732571041530,0.3608,94164.0,94158.0,0.18236]
[1732571041729,0.053096,94155.0,94154.0,0.00010397]
[1732571042035,0.3608,94159.0,94133.0,0.18236]
[1732571042333,0.053107,94137.0,94133.0,0.18236]
[1732571042536,0.3608,94139.0,94133.0,0.18236]
[1732571043033,0.3608,94139.0,94130.0,0.10792087]
[1732571043237,0.3608,94139.0,94130.0,0.29028087]
[1732571043722,0.055793,94162.0,94130.0,0.29028087]
[1732571043723,0.413897,94154.0,94130.0,0.18236]
[1732571044036,0.3608,94154.0,94145.0,0.053101]
[1732571044336,0.3608,94154.0,94143.0,0.18236]
[1732571044337,0.3608,94146.0,94143.0,0.18236]
[1732571044637,0.053102,94145.0,94143.0,0.18236]
[1732571044831,0.3608,94146.0,94136.0,9.367e-05]
[1732571045033,0.413906,94137.0,94136.0,9.367e-05]
[1732571045426,0.3608,94137.0,94136.0,9.367e-05]
[1732571045831,0.413906,94137.0,94136.0,9.367e-05]
[1732571046040,0.732586,94137.0,94136.0,9.367e-05]
[1732571046226,1.032586,94137.0,94136.0,6.7e-07]
[1732571046422,0.732586,94137.0,94136.0,6.7e-07]
[1732571046623,0.921266,94137.0,94136.0,6.7e-07]
[1732571046825,1.221266,94137.0,94124.0,0.042]
[1732571047033,0.413913,94125.0,94124.0,0.042]
[1732571047436,0.732633,94125.0,94124.0,0.042]
[1732571048225,1.032633,94125.0,94124.0,0.04211997]
[1732571048535,1.032633,94125.0,94100.0,0.1]
[1732571048536,0.053126,94101.0,94100.0,0.1]
[1732571049430,0.053126,94101.0,94100.0,0.10009973]
[1732571050837,0.3608,94105.0,94103.0,0.053125]
[1732571051038,0.3608,94123.0,94104.0,0.63516]
[1732571051240,0.3608,94123.0,94117.0,0.053117]
[1732571051835,0.3608,94123.0,94117.0,0.241877]
[1732571052037,0.3608,94123.0,94117.0,0.053117]
[1732571052536,0.3608,94136.0,94117.0,0.560637]
[1732571052737,0.3608,94136.0,94134.0,0.053108]
[1732571052931,0.3608,94136.0,94134.0,0.18876]
[1732571053533,0.3608,94136.0,94124.0,0.053113]
[1732571053728,0.053109,94132.0,94125.0,0.1888677]
[1732571053923,0.3608,94136.0,94125.0,0.1888677]
[1732571054136,0.3608,94126.0,94125.0,0.0001077]
[1732571054332,0.413912,94126.0,94125.0,0.0001077]
[1732571055138,0.3608,94126.0,94111.0,0.3608]
[1732571055441,0.3608,94126.0,94112.0,0.18876]
[1732571055635,0.3608,94126.0,94120.0,0.053116]
[1732571055841,0.3608,94126.0,94120.0,0.241876]
[1732571056037,0.3608,94126.0,94121.0,0.00011247]
[1732571056240,0.00916262,94125.0,94121.0,0.00011247]
[1732571056441,0.00916262,94124.0,94121.0,0.00011247]
[1732571056640,0.00916118,94123.0,94121.0,0.00011247]
[1732571056841,0.00916118,94122.0,94121.0,0.00011247]
[1732571057043,0.00916118,94122.0,94121.0,0.18887247]
[1732571057234,0.00916118,94122.0,94121.0,0.00011247]
[1732571057938,0.32788118,94122.0,94121.0,6.81e-06]
[1732571058134,0.37954259,94122.0,94121.0,6.81e-06]
[1732571058344,0.37954259,94122.0,94101.0,0.18876]
[1732571058345,0.053116,94120.0,94101.0,0.18876]
[1732571058541,0.3608,94103.0,94102.0,0.18876]
[1732571058841,0.3608,94103.0,94100.0,0.1]
[1732571058842,0.36996118,94103.0,94100.0,0.1]
[1732571059047,0.06228718,94102.0,94100.0,0.1]
[1732571059246,0.00916118,94101.0,94100.0,0.1]
[1732571059542,0.00916118,94101.0,94100.0,0.10012409]
[1732571059841,0.00913815,94101.0,94100.0,0.10012409]
[1732571061349,0.02433126,94101.0,94100.0,0.07620625]
[1732571061645,0.04677998,94101.0,94100.0,0.01641154]
[1732571062351,0.01519311,94101.0,94100.0,0.01641154]
[1732571062546,0.053126,94102.0,94100.0,0.01641154]
[1732571064146,0.3188,94101.0,94078.0,0.1888]
[1732571064447,0.3608,94082.0,94079.0,0.01977986]
[1732571064643,0.10033523,94081.0,94079.0,0.01977986]
[1732571064953,0.02474851,94080.0,94079.0,0.01977986]
[1732571065249,0.02474851,94080.0,94079.0,0.0198939]
[1732571065645,0.02474851,94080.0,94079.0,0.00011404]
[1732571065846,0.04719723,94080.0,94079.0,0.00011404]
[1732571066043,0.02381072,94080.0,94079.0,0.00011404]
[1732571066642,0.01537924,94080.0,94079.0,0.00011404]
[1732571067353,0.01537924,94080.0,94051.0,0.3608]
[1732571067354,0.33425924,94080.0,94051.0,0.3608]
[1732571067549,0.5432,94082.0,94054.0,0.00534]
[1732571067550,0.3608,94060.0,94054.0,0.00534]
[1732571067746,0.3608,94077.0,94055.0,0.0474]
[1732571067747,0.3608,94068.0,94055.0,0.0474]
[1732571067948,0.3608,94085.0,94065.0,0.3608]
[1732571068151,0.3608,94071.0,94055.0,0.0474]
[1732571068347,0.413944,94071.0,94057.0,0.3608]
[1732571068548,0.3608,94071.0,94060.0,0.16265837]
[1732571068746,0.3608,94071.0,94061.0,0.18244]
[1732571068952,0.0027,94089.0,94068.0,0.3608]
[1732571069153,0.3608,94094.0,94081.0,0.3608]
[1732571069453,0.05313,94095.0,94084.0,0.16265837]
[1732571069650,0.053133,94091.0,94082.0,0.22984]
[1732571069841,0.053137,94083.0,94082.0,0.22984]
[1732571070041,0.053137,94083.0,94082.0,0.0474]
[1732571070359,0.053144,94070.0,94069.0,9.187e-05]
[1732571070543,0.429111,94070.0,94069.0,9.187e-05]
[1732571071652,0.05315,94060.0,94059.0,0.22924]
[1732571071847,0.068317,94060.0,94059.0,0.0468]
[1732571072051,0.068317,94060.0,94059.0,0.23564]
[1732571072450,0.053152,94056.0,94054.0,0.00534]
[1732571072754,0.053152,94056.0,94055.0,0.00013372]
[1732571074559,0.31896,94055.0,94047.0,0.00820288]
[1732571074869,0.31896,94055.0,94026.0,0.3608]
[1732571074870,0.053164,94035.0,94027.0,0.0027]
[1732571075169,0.3608,94028.0,94020.0,0.16265837]
[1732571075371,0.3608,94028.0,94013.0,0.18884]
[1732571075571,0.3608,94018.0,94014.0,0.18884]
[1732571075770,0.3608,94018.0,94014.0,9.102e-05]
[1732571076071,0.3608,94018.0,94015.0,0.18884]
[1732571076365,0.3608,94018.0,94014.0,9.102e-05]
[1732571076871,0.3608,94018.0,94015.0,0.18884]
[1732571077063,0.3608,94046.0,94031.0,0.053166]
[1732571077267,0.3608,94046.0,94038.0,0.3608]
[1732571077468,0.3608,94046.0,94039.0,0.18884]
[1732571078068,0.3608,94046.0,94040.0,0.18888]
[1732571078665,0.3608,94065.0,94040.0,0.18888]
[1732571078865,0.3608,94065.0,94050.0,0.16265837]
[1732571079069,0.3608,94065.0,94051.0,0.18888]
[1732571079272,0.3608,94057.0,94051.0,0.18888]
[1732571079476,0.3608,94057.0,94041.0,8.774e-05]
[1732571079768,0.053153,94054.0,94041.0,8.774e-05]
[1732571079968,0.3608,94049.0,94041.0,8.774e-05]
[1732571080273,0.3608,94049.0,94041.0,0.18896774]
[1732571080774,0.3608,94049.0,94041.0,8.774e-05]
[1732571081079,0.053159,94043.0,94023.0,0.0027]
[1732571081271,0.3608,94045.0,94026.0,0.053169]
[1732571081464,0.3608,94045.0,94021.0,0.0457]
[1732571081669,0.3608,94045.0,94025.0,0.3608]
[1732571081967,0.3608,94045.0,94026.0,9.193e-05]
[1732571082167,0.3608,94045.0,94027.0,0.19528]
[1732571082361,0.3608,94045.0,94030.0,0.21582437]
[1732571082563,0.3608,94045.0,94030.0,0.053166]
[1732571082765,0.3608,94045.0,94027.0,0.19528]
[1732571083373,0.3608,94045.0,94028.0,1.913968]
[1732571083672,0.3608,94045.0,94028.0,1.5]
[1732571083673,0.053167,94030.0,94028.0,1.5]
[1732571084576,0.3608,94032.0,94026.0,9.193e-05]
[1732571084577,0.053168,94028.0,94026.0,9.193e-05]
[1732571086068,0.3608,94029.0,94026.0,9.193e-05]
[1732571086369,0.3608,94042.0,94026.0,9.193e-05]
[1732571086571,0.3608,94042.0,94026.0,0.36089193]
[1732571086770,0.3608,94030.0,94027.0,0.19532]
[1732571087164,0.3608,94042.0,94028.0,0.248487]
[1732571088073,0.3608,94042.0,94034.0,0.053164]
[1732571088463,0.3608,94042.0,94035.0,0.053163]
[1732571089076,0.3608,94052.0,94036.0,0.80772803]
[1732571089077,0.053155,94051.0,94036.0,0.80772803]
[1732571089775,0.053155,94051.0,94037.0,0.053162]
[1732571089973,0.3608,94062.0,94044.0,0.3608]
[1732571090163,0.3608,94062.0,94048.0,0.053156]
[1732571090579,0.3608,94062.0,94049.0,0.19532]
[1732571090770,0.3608,94062.0,94045.0,0.0444]
[1732571090966,0.3608,94054.0,94046.0,0.19532]
[1732571091170,0.053157,94047.0,94046.0,0.19532]
[1732571092068,0.3608,94054.0,94046.0,0.19532]
[1732571092665,0.00891535,94053.0,94041.0,0.05316]
[1732571092867,0.00891535,94052.0,94042.0,0.19532]
[1732571093172,0.00891535,94051.0,94043.0,1.5]
[1732571093473,0.00891535,94050.0,94047.0,0.053157]
[1732571093669,0.3608,94054.0,94047.0,0.053157]
[1732571094371,0.3608,94054.0,94048.0,0.053156]
[1732571094762,0.3608,94054.0,94043.0,1.5]
[1732571094965,0.3608,94062.0,94050.0,0.3608]
[1732571095269,0.3608,94075.0,94061.0,0.3608]
[1732571095472,0.3608,94075.0,94062.0,0.0476]
[1732571095663,0.3608,94075.0,94069.0,0.053144]
[1732571095866,0.41082,94088.0,94073.0,0.3608]
[1732571095867,0.12427978,94083.0,94073.0,0.3608]
[1732571096173,0.3608,94102.0,94073.0,0.6608]
[1732571096473,0.3608,94102.0,94089.0,0.16265837]
[1732571096676,0.0090774,94098.0,94091.0,0.3608]
[1732571096973,0.0090774,94098.0,94090.0,0.24292]
[1732571096974,0.3608,94092.0,94090.0,0.24292]
[1732571097279,0.0090774,94091.0,94090.0,0.24292]
[1732571097467,0.3698774,94091.0,94090.0,0.24292]
[1732571097667,0.053131,94094.0,94085.0,0.3608]
[1732571097976,0.3608,94102.0,94090.0,0.19532]
[1732571098167,0.3608,94094.0,94081.0,1.5]
[1732571098368,0.3608,94094.0,94070.0,0.16278555]
[1732571098369,0.3608,94082.0,94070.0,0.00012718]
[1732571098568,0.3608,94082.0,94050.0,0.0027]
[1732571098569,0.053149,94061.0,94050.0,0.0027]
[1732571098771,0.053149,94061.0,94035.0,0.0478]
[1732571098772,0.413949,94061.0,94035.0,0.0478]
[1732571098966,0.413949,94061.0,94043.0,0.03010265]
[1732571099172,0.413949,94061.0,94046.0,0.19528]
[1732571099370,0.413949,94061.0,94050.0,0.053155]
[1732571099569,0.413949,94061.0,94060.0,0.00170079]
[1732571100276,0.5384252,94061.0,94060.0,0.00170079]
[1732571100480,0.413949,94061.0,94060.0,0.00170079]
[1732571100682,0.732909,94061.0,94060.0,0.00170079]
[1732571100869,0.85725326,94061.0,94060.0,0.00170079]
[1732571101072,0.85725326,94061.0,94060.0,0.00010608]
[1732571101580,0.732909,94061.0,94060.0,0.00010608]
[1732571101883,0.053153,94055.0,94054.0,0.053151]
[1732571102475,0.053153,94055.0,94041.0,0.0463]
[1732571102676,0.7216,94042.0,94033.0,0.44676]
[1732571102881,0.3608,94034.0,94027.0,0.00159516]
[1732571103074,0.57000593,94028.0,94027.0,0.00159516]
[1732571103378,0.5695785,94028.0,94027.0,0.00168357]
[1732571103580,0.733008,94028.0,94027.0,8.841e-05]
[1732571103876,0.53839359,94028.0,94027.0,8.841e-05]
[1732571104182,0.12594559,94034.0,94033.0,0.053165]
[1732571104478,0.12442559,94048.0,94033.0,0.3608]
[1732571104678,0.12442559,94048.0,94033.0,0.55612]
[1732571104883,0.12442559,94048.0,94046.0,0.053157]
[1732571105178,0.48522559,94050.0,94046.0,0.053157]
[1732571105378,0.48522559,94050.0,94048.0,0.053156]
[1732571105568,0.48522559,94050.0,94049.0,0.19532]
[1732571105769,0.3608,94050.0,94049.0,0.19532]
[1732571106079,0.1245985,94078.0,94051.0,0.053155]
[1732571106391,0.1272985,94085.0,94071.0,0.3608]
[1732571106680,0.1272985,94085.0,94084.0,0.3608]
[1732571106681,0.1245985,94085.0,94084.0,0.3608]
[1732571106886,8.17e-05,94099.0,94084.0,0.55612]
[1732571107084,8.17e-05,94099.0,94089.0,0.16265837]
[1732571107381,8.17e-05,94099.0,94098.0,0.053128]
[1732571107883,0.12454575,94106.0,94105.0,0.053124]
[1732571108180,0.10151611,94121.0,94120.0,0.053116]
[1732571108484,0.0027,94145.0,94144.0,0.053102]
[1732571108678,0.22031018,94153.0,94144.0,0.80752]
[1732571108874,0.22031018,94153.0,94145.0,0.0001217]
[1732571109082,0.22031018,94153.0,94152.0,0.3608]
[1732571109374,0.00084348,94167.0,94152.0,0.3608]
[1732571109576,0.053101,94146.0,94145.0,0.0001217]
[1732571109783,0.732541,94146.0,94145.0,0.0001217]
[1732571110082,0.053112,94126.0,94125.0,0.02127183]
[1732571110286,0.053112,94126.0,94100.0,0.77683844]
[1732571110287,0.05312,94113.0,94101.0,0.0027]
[1732571110484,0.05312,94113.0,94100.0,0.3608]
[1732571110485,0.3608,94116.0,94100.0,0.25077913]
[1732571110678,0.0027,94133.0,94115.0,0.3608]
[1732571110872,0.0027,94151.0,94131.0,0.3608]
[1732571111179,0.3608,94157.0,94141.0,0.3608]
[1732571111382,0.3608,94157.0,94140.0,0.413904]
[1732571111585,0.3608,94157.0,94140.0,0.3608]
[1732571111771,0.3608,94147.0,94132.0,8.109e-05]
[1732571111972,0.053099,94151.0,94134.0,0.413908]
[1732571112169,0.3608,94157.0,94141.0,0.053104]
[1732571112382,0.0373,94165.0,94141.0,0.053104]
[1732571112572,0.0027,94166.0,94141.0,0.251504]
[1732571112770,0.0027,94166.0,94143.0,0.053102]
[1732571112971,0.053091,94164.0,94144.0,0.1984]
[1732571113169,0.3608,94175.0,94142.0,0.36088035]
[1732571113382,0.3608,94175.0,94150.0,0.053099]
[1732571113588,0.3608,94163.0,94143.0,0.1984]
[1732571113772,0.3608,94175.0,94153.0,0.3608]
[1732571113773,0.05309,94167.0,94153.0,0.3608]
[1732571114172,0.3608,94175.0,94153.0,0.3608]
[1732571114482,0.053091,94164.0,94150.0,0.25077913]
[1732571114681,0.3608,94166.0,94147.0,0.44652]
[1732571115371,0.3608,94166.0,94132.0,1.5027]
[1732571115372,0.3608,94154.0,94137.0,0.3608]
[1732571115574,0.413903,94143.0,94123.0,0.0027]
[1732571115880,0.05312,94113.0,94112.0,0.00429366]
[1732571116080,0.42298023,94113.0,94112.0,0.00159366]
[1732571116289,0.68861883,94113.0,94089.0,0.02124801]
[1732571116585,0.3608,94096.0,94076.0,0.0027]
[1732571116776,0.053142,94074.0,94062.0,0.053148]
[1732571116972,0.00905883,94073.0,94068.0,0.3608]
[1732571117172,0.00905883,94073.0,94063.0,8.46e-05]
[1732571117380,0.053144,94070.0,94063.0,8.46e-05]
[1732571117579,0.053147,94064.0,94063.0,8.46e-05]
[1732571117876,0.00905883,94064.0,94063.0,8.46e-05]
[1732571119079,0.00905883,94064.0,94050.0,0.50344528]
[1732571119080,0.053155,94051.0,94050.0,0.50344528]
[1732571119285,0.06221383,94051.0,94050.0,0.50344528]
[1732571119591,0.38117383,94051.0,94050.0,0.50344528]
[1732571119790,0.68117383,94051.0,94050.0,0.50344528]
[1732571120081,0.68117383,94051.0,94050.0,0.50355874]
[1732571120282,0.68117383,94051.0,94040.0,0.48378803]
[1732571120283,0.05316,94041.0,94040.0,0.48378803]
[1732571120488,0.053174,94017.0,94016.0,0.0027]
[1732571120675,0.06223283,94017.0,94013.0,0.48508264]
[1732571120878,0.00921451,94016.0,94015.0,0.053175]
[1732571121072,0.00921451,94016.0,94013.0,0.48508264]
[1732571121380,0.00921451,94015.0,94014.0,0.0532633]
[1732571121576,0.0092148,94015.0,94014.0,8.73e-05]
[1732571121776,0.0092148,94015.0,94014.0,0.3608873]
[1732571121986,0.02425091,94015.0,94014.0,0.5657273]
[1732571122389,0.0092148,94015.0,94014.0,0.5657273]
[1732571122979,0.053169,94025.0,94014.0,0.3608873]
[1732571123187,0.01503611,94028.0,94014.0,0.3608873]
[1732571123188,0.02442671,94024.0,94014.0,0.3608873]
[1732571123390,0.3608,94029.0,94014.0,0.3608873]
[1732571123391,0.053171,94022.0,94014.0,0.3608873]
[1732571123680,0.053175,94015.0,94014.0,8.73e-05]
[1732571123892,0.00959439,94015.0,94014.0,8.73e-05]
[1732571124076,0.00959439,94015.0,94006.0,0.22618778]
[1732571124271,0.053172,94021.0,94006.0,0.22618778]
[1732571124478,0.02494513,94020.0,94006.0,0.22618778]
[1732571124678,0.053172,94021.0,94011.0,0.3608]
[1732571124679,0.02494513,94019.0,94011.0,0.3608]
[1732571124997,0.02494513,94018.0,94012.0,0.00013631]
[1732571125193,0.02494513,94017.0,94012.0,0.00013631]
[1732571125486,0.02494513,94016.0,94012.0,0.00013631]
[1732571125685,0.02494513,94015.0,94012.0,0.00013631]
[1732571125986,0.00959428,94014.0,94012.0,0.00013631]
[1732571126187,0.00959428,94013.0,94012.0,0.00013631]
[1732571126484,0.20492,94034.0,94012.0,0.00013631]
[1732571126485,0.18594648,94043.0,94020.0,0.053172]
[1732571126686,0.18594648,94043.0,94038.0,0.3608]
[1732571126983,0.053171,94022.0,94021.0,0.44676]
[1732571127184,0.053171,94022.0,94019.0,0.21307524]
[1732571127185,0.3608,94022.0,94019.0,0.00159524]
[1732571127379,0.053172,94020.0,94019.0,0.00159524]
[1732571127576,0.053172,94020.0,94012.0,0.00013631]
[1732571127785,0.053176,94013.0,94012.0,0.00013631]
[1732571128187,0.053174,94017.0,94012.0,0.00013631]
[1732571128396,0.053175,94016.0,94012.0,0.00013631]
[1732571128986,0.3608,94031.0,94012.0,0.00013631]
[1732571128987,0.413976,94015.0,94013.0,0.21148]
[1732571129193,0.053176,94015.0,94013.0,0.21148]
[1732571129384,0.413976,94015.0,94013.0,0.21148]
[1732571129586,0.3608,94031.0,94013.0,0.21148]
[1732571129587,0.09239358,94021.0,94013.0,0.21148]
[1732571129780,0.053172,94021.0,94012.0,0.00013631]
[1732571130089,0.09239358,94026.0,94012.0,0.00013631]
[1732571130090,0.3608,94013.0,94012.0,0.00013631]
[1732571130595,0.053202,93967.0,93958.0,0.26021815]
[1732571130890,0.053231,93917.0,93912.0,0.199]
[1732571131091,0.307569,93913.0,93903.0,0.199]
[1732571131389,0.3608,93905.0,93900.0,0.22127918]
[1732571131591,0.3608,93905.0,93851.0,0.016]
[1732571131592,0.3608,93887.0,93829.0,0.61999718]
[1732571131792,0.44704,93911.0,93831.0,0.3608]
[1732571131793,0.3608,93855.0,93831.0,0.3608]
[1732571132089,0.3608,93848.0,93830.0,0.0001137]
[1732571132290,0.3608,93840.0,93830.0,0.0001137]
[1732571132492,0.3608,93831.0,93830.0,0.0001137]
[1732571132683,0.3608,93840.0,93830.0,0.0001137]
[1732571132884,0.3608,93832.0,93830.0,0.0001137]
[1732571133090,0.3608,93835.0,93830.0,0.0001137]
[1732571133288,0.3608,93835.0,93796.0,0.02127979]
[1732571133289,0.053278,93834.0,93824.0,1.5]
[1732571133493,0.36240001,93835.0,93834.0,0.18279992]
[1732571133695,0.3608,93835.0,93834.0,0.18279992]
[1732571133989,0.3608,93835.0,93815.0,0.01]
[1732571133990,0.3608,93835.0,93816.0,1.5]
[1732571134185,0.7216,93817.0,93816.0,1.5]
[1732571134386,0.7216,93817.0,93816.0,1.50007617]
[1732571134592,0.7216,93817.0,93816.0,0.18287609]
[1732571134901,0.3608,93825.0,93808.0,0.3608]
[1732571135193,0.3608,93840.0,93824.0,0.3608]
[1732571135490,0.3608,93876.0,93854.0,0.053266]
[1732571135692,0.3608,93866.0,93842.0,0.053273]
[1732571135898,0.3608,93843.0,93825.0,0.0395]
[1732571136100,0.3608,93827.0,93826.0,0.00013727]
[1732571136288,0.02127979,93877.0,93826.0,0.31989727]
[1732571136490,0.09160445,93911.0,93840.0,0.25077913]
[1732571136491,0.3608,93863.0,93840.0,0.25077913]
[1732571136792,0.02127979,93855.0,93841.0,0.00011926]
[1732571136992,0.3608,93852.0,93841.0,0.00011926]
[1732571137193,0.414073,93843.0,93841.0,0.00011926]
[1732571137393,0.414073,93843.0,93822.0,0.3708]
[1732571137394,0.31968,93842.0,93822.0,0.01]
[1732571137594,0.3608,93832.0,93820.0,0.25077913]
[1732571137791,0.3608,93853.0,93841.0,0.053273]
[1732571138093,0.3608,93853.0,93807.0,0.3]
[1732571138094,0.3608,93879.0,93852.0,0.3608]
[1732571138395,0.3608,93884.0,93860.0,0.25077913]
[1732571138593,0.3608,93884.0,93853.0,0.44753704]
[1732571138594,0.3608,93867.0,93853.0,0.00013704]
[1732571138896,0.053266,93854.0,93853.0,4e-08]
[1732571139093,0.053276,93838.0,93802.0,0.053296]
[1732571139293,0.0015,93873.0,93801.0,0.2506]
[1732571139294,0.3608,93827.0,93806.0,0.053293]
[1732571139492,0.3608,93827.0,93821.0,0.053285]
[1732571139797,0.3608,93825.0,93807.0,0.00159901]
[1732571140096,0.02131889,93854.0,93824.0,0.3608]
[1732571140097,0.3608,93845.0,93824.0,0.3608]
[1732571140293,0.3608,93845.0,93825.0,0.00013477]
[1732571140483,0.3608,93856.0,93833.0,0.3608]
[1732571140684,0.3608,93870.0,93846.0,0.25077913]
[1732571140890,0.00883506,93869.0,93855.0,0.3608]
[1732571141196,0.3608,93881.0,93856.0,0.3608]
[1732571141197,0.00883506,93868.0,93856.0,0.3608]
[1732571141396,0.3608,93881.0,93856.0,0.36089256]
[1732571141697,0.00898463,93880.0,93856.0,9.256e-05]
[1732571141896,0.3608,93869.0,93856.0,9.256e-05]
[1732571142091,0.3608,93881.0,93856.0,9.256e-05]
[1732571142294,0.00913679,93880.0,93856.0,0.30009256]
[1732571142489,0.3608,93881.0,93864.0,0.05326]
[1732571142685,0.3608,93898.0,93880.0,0.053251]
[1732571142995,0.00160001,93927.0,93867.0,0.02131281]
[1732571142996,0.053253,93877.0,93872.0,0.00010462]
[1732571143186,0.414055,93873.0,93872.0,0.00010462]
[1732571143388,0.414055,93873.0,93855.0,0.00115138]
[1732571143389,0.053262,93863.0,93855.0,0.00115138]
[1732571143588,0.38542567,93873.0,93855.0,0.00115138]
[1732571143589,0.414065,93856.0,93855.0,0.00115138]
[1732571143896,0.38542642,93856.0,93855.0,0.00115138]
[1732571144091,0.3608,93880.0,93855.0,0.68159138]
[1732571144293,0.3608,93880.0,93862.0,0.3608]
[1732571144494,0.3608,93880.0,93863.0,8.856e-05]
[1732571144700,0.3608,93880.0,93872.0,0.053256]
[1732571144996,0.3608,93880.0,93863.0,8.856e-05]
[1732571144997,0.053252,93879.0,93863.0,8.856e-05]
[1732571145191,0.3608,93867.0,93863.0,8.856e-05]
[1732571145394,0.3608,93880.0,93863.0,8.856e-05]
[1732571145594,0.3608,93872.0,93864.0,0.053261]
[1732571146099,0.3608,93865.0,93855.0,0.00115138]
[1732571146298,0.414065,93857.0,93855.0,0.00115138]
[1732571146499,0.3608,93857.0,93829.0,0.44752]
[1732571146800,0.3608,93847.0,93832.0,0.3608]
[1732571147002,0.0027,93852.0,93832.0,0.3608]
[1732571147303,0.0027,93852.0,93788.0,0.0358]
[1732571147304,0.053276,93837.0,93835.0,0.00010329]
[1732571147693,0.31972,93836.0,93835.0,0.00010329]
[1732571147997,0.053276,93837.0,93835.0,0.00010329]
[1732571148593,0.31972,93836.0,93835.0,0.00010329]
[1732571148794,0.3608,93839.0,93835.0,0.00010329]
[1732571149299,0.3635,93847.0,93846.0,0.053271]
[1732571149300,1e-06,93847.0,93846.0,0.053271]
[1732571149492,1e-06,93847.0,93846.0,1.112311]
[1732571149695,1e-06,93847.0,93846.0,1.731991]
[1732571149899,1e-06,93847.0,93846.0,2.931991]
[1732571150106,1e-06,93847.0,93846.0,3.231991]
[1732571150705,1e-06,93847.0,93846.0,1.431991]
[1732571150999,1e-06,93847.0,93846.0,0.9007968]
[1732571151205,1e-06,93847.0,93838.0,1.5]
[1732571151392,1e-06,93847.0,93834.0,0.053277]
[1732571151393,0.3608,93841.0,93834.0,0.053277]
[1732571151595,0.3608,93841.0,93834.0,0.02132714]
[1732571152002,1e-06,93847.0,93839.0,0.053274]
[1732571152201,1e-06,93847.0,93846.0,0.053271]
[1732571152907,0.360801,93847.0,93840.0,0.00013353]
[1732571153099,1e-06,93847.0,93840.0,0.00013353]
[1732571153602,1e-06,93847.0,93845.0,0.053271]
[1732571153809,1e-06,93847.0,93846.0,0.31979258]
[1732571154202,1e-06,93847.0,93846.0,0.00011258]
[1732571154711,0.053254,93876.0,93857.0,0.053264]
[1732571154895,0.3608,93869.0,93858.0,0.25084068]
[1732571155099,0.3608,93861.0,93858.0,0.00012068]
[1732571155302,0.05326,93866.0,93858.0,0.00012068]
[1732571155604,0.3608,93882.0,93858.0,0.00012068]
[1732571155605,0.3608,93882.0,93858.0,0.30012068]
[1732571155805,0.414049,93886.0,93858.0,0.00012068]
[1732571156003,0.3608,93886.0,93858.0,0.00012068]
[1732571156203,0.3608,93875.0,93858.0,0.00012068]
[1732571156508,0.00917969,93874.0,93872.0,0.053255]
[1732571156706,0.00917969,93873.0,93872.0,0.053255]
[1732571157006,0.00917641,93873.0,93872.0,8.213e-05]
[1732571157402,0.00917641,93873.0,93872.0,0.05333813]
[1732571157597,0.00917641,93873.0,93872.0,8.213e-05]
[1732571158211,0.00917641,93873.0,93872.0,4.3e-07]
[1732571158602,0.00917641,93873.0,93858.0,0.25072]
[1732571158907,0.00917641,93872.0,93871.0,0.053257]
[1732571159209,0.00917641,93872.0,93871.0,1.033657]
[1732571159409,0.00917641,93872.0,93871.0,1.094457]
[1732571159410,0.10078086,93872.0,93871.0,1.094457]
[1732571159612,0.24801222,93910.0,93871.0,1.094457]
[1732571159613,0.15081443,93888.0,93872.0,0.3196]
[1732571159815,0.18594648,93895.0,93887.0,0.58305232]
[1732571160114,0.15668563,93917.0,93881.0,0.25077913]
[1732571160115,0.3608,93896.0,93890.0,0.053246]
[1732571160302,0.3608,93915.0,93911.0,0.053233]
[1732571160516,0.3608,93915.0,93888.0,0.44773788]
[1732571160517,0.05177892,93914.0,93888.0,9.788e-05]
[1732571160705,0.3608,93889.0,93888.0,9.788e-05]
[1732571161005,0.4125812,93889.0,93888.0,9.788e-05]
[1732571161406,0.59852768,93889.0,93888.0,9.788e-05]
[1732571161619,0.0517812,93889.0,93888.0,9.788e-05]
[1732571162009,0.21678781,93916.0,93888.0,9.788e-05]
[1732571162010,0.18594648,93899.0,93898.0,0.053241]
[1732571162311,0.15684785,93919.0,93888.0,9.788e-05]
[1732571162312,0.15525216,93904.0,93888.0,9.788e-05]
[1732571162512,0.053246,93890.0,93888.0,9.788e-05]
[1732571162717,0.053244,93893.0,93888.0,9.788e-05]
[1732571162918,0.18627543,93891.0,93888.0,9.788e-05]
[1732571163213,0.05178387,93890.0,93888.0,9.788e-05]
[1732571163403,0.05178387,93889.0,93888.0,9.788e-05]
[1732571163606,0.20697871,93889.0,93888.0,9.788e-05]
[1732571163809,0.27871452,93917.0,93888.0,9.788e-05]
[1732571163810,0.15519484,93904.0,93888.0,0.61952]
[1732571164111,0.15519484,93922.0,93920.0,0.053229]
[1732571164316,0.15519484,93929.0,93921.0,0.69849475]
[1732571164509,0.053227,93923.0,93921.0,7.562e-05]
[1732571164705,0.02431545,93928.0,93922.0,0.6802]
[1732571165016,0.00010461,93935.0,93927.0,0.3608]
[1732571165317,0.00010461,93935.0,93934.0,0.3608]
[1732571165613,0.00010461,93935.0,93934.0,0.36087915]
[1732571166414,0.00010461,93935.0,93934.0,0.68023915]
[1732571166613,0.00010461,93935.0,93934.0,0.44763915]